fUSD/lending_fUSD_20250401
["ID","MTS","AMOUNT","RATE_DAILY","PERIOD"]
[356981433,1743519051647,-4385.4129489,0.00049864,2]
[356981434,1743519051658,-150.0,0.00049866,7]
[356981435,1743519051668,-420.08944565,0.0004987,59]
[356981436,1743519051678,-44511.75234666,0.0004987,59]
[356981437,1743519051687,-72576.93238676,0.0004987,5]
[356981438,1743519051697,-169.358,0.0004987,120]
[356981439,1743519051707,-2601.90116564,0.00049898,120]
[356981440,1743519051717,-2601.90116564,0.00049898,120]
[356981441,1743519051727,-2601.90116564,0.00049898,120]
[356981442,1743519051736,-2601.90116564,0.00049898,120]
[356981443,1743519051746,-2601.90116564,0.00049898,120]
[356981444,1743519051756,-2601.90116564,0.00049898,120]
[356981445,1743519051765,-2601.90116564,0.00049898,120]
[356981446,1743519051775,-2601.90116564,0.00049898,120]
[356981447,1743519051785,-2601.90116564,0.00049898,120]
[356981448,1743519051795,-2601.90116564,0.00049898,120]
[356981449,1743519051805,-3254.30835285,0.000499,15]
[356981450,1743519051815,-3108.23956018,0.000499,15]
[356981451,1743519051825,-211.88,0.000499,120]
[356981452,1743519051835,-164.80067938,0.000499,120]
[356981453,1743519051845,-164.80067938,0.000499,120]
[356981454,1743519051855,-371.1067,0.000499,30]
[356981455,1743519051864,-241.22552034,0.000499,2]
[356981456,1743519051874,-714.059,0.000499,30]
[356981457,1743519051883,-155.6978894,0.000499,120]
[356981458,1743519051893,-155.69788931,0.000499,120]
[356981459,1743519051903,-5782.42694363,0.000499,2]
[356981460,1743519051913,-150.0,0.00049904,2]
[356981461,1743519051923,-150.0,0.00049904,2]
[356981462,1743519051933,-4602.96496198,0.00049904,2]
[356981463,1743519051943,-150.0,0.00049904,2]
[356981464,1743519051954,-3580.59201883,0.00049904,2]
[356981465,1743519051965,-4482.42813238,0.00049904,2]
[356981466,1743519051974,-684.27,0.0004991,2]
[356981467,1743519051984,-167.4902408,0.00049918,120]
[356981468,1743519051993,-167.4902408,0.00049918,120]
[356981469,1743519052003,-9993.6247483,0.00049966,2]
[356981470,1743519052012,-4421.3307682,0.00049966,2]
[356981471,1743519052022,-4224.2056149,0.00049966,2]
[356981472,1743519052031,-150.0,0.00049973,10]
[356981473,1743519052041,-500.0,0.00049989,2]
[356981474,1743519052052,-19795.33569259,0.0004999,120]
[356981475,1743519052062,-40648.76905495,0.0004999,2]
[356981476,1743519052072,-478.98329315,0.0004999,7]
[356981477,1743519052082,-478.98329315,0.0004999,7]
[356981478,1743519052091,-2850.4,0.00049999,120]
[356981479,1743519052101,-2850.4,0.00049999,120]
[356981480,1743519052110,-1607.9058282,0.00049999,120]
[356981481,1743519052119,-1607.9058282,0.00049999,120]
[356981482,1743519052130,-1607.9058282,0.00049999,120]
[356981483,1743519052139,-1607.9058282,0.00049999,120]
[356981484,1743519052149,-1607.9058282,0.00049999,120]
[356981485,1743519052158,-1607.9058282,0.00049999,120]
[356981486,1743519052168,-1607.9058282,0.00049999,120]
[356981487,1743519052177,-1607.9058282,0.00049999,120]
[356981488,1743519052187,-1607.9058282,0.00049999,120]
[356981489,1743519052196,-1607.9058282,0.00049999,120]
[356981490,1743519052205,-470.8937389,0.00049999,120]
[356981491,1743519052215,-366.98441304,0.00049999,120]
[356981492,1743519052224,-467.65720077,0.00049999,120]
[356981493,1743519052234,-380.87219951,0.00049999,120]
[356981494,1743519052243,-436.5092925,0.00049999,7]
[356981495,1743519052253,-412.76787947,0.00049999,31]
[356981496,1743519052262,-349.65994,0.00049999,120]
[356981497,1743519052272,-349.65994,0.00049999,120]
[356981498,1743519052282,-150.0,0.00049999,120]
[356981499,1743519052292,-150.0,0.00049999,120]
[356981500,1743519052302,-150.0,0.00049999,120]
[356981501,1743519052312,-150.0,0.00049999,120]
[356981502,1743519052322,-150.0,0.00049999,120]
[356981503,1743519052331,-155.28396935,0.00049999,120]
[356981504,1743519052342,-500.0,0.00049999,2]
[356981505,1743519052352,-500.0,0.00049999,2]
[356981506,1743519052362,-500.0,0.00049999,2]
[356981507,1743519052372,-500.0,0.00049999,2]
[356981508,1743519052382,-500.0,0.00049999,2]
[356981509,1743519052392,-500.0,0.00049999,2]
[356981510,1743519052401,-500.0,0.00049999,2]
[356981511,1743519052411,-500.0,0.00049999,2]
[356981512,1743519052421,-500.0,0.00049999,2]
[356981513,1743519052431,-500.0,0.00049999,2]
[356981514,1743519052441,-500.0,0.00049999,2]
[356981515,1743519052451,-500.0,0.00049999,2]
[356981516,1743519052461,-633.26,0.00049999,2]
[356981517,1743519052470,-50000.0,0.0005,50]
[356981518,1743519052480,-4879.46,0.0005,5]
[356981519,1743519052490,-2398.4,0.0005,10]
[356981520,1743519052499,-1061.0,0.0005,30]
[356981521,1743519052509,-612356.9801021,0.0005,120]
[356981522,1743519052601,-856589.97727306,0.0005,120]
[356981523,1743519052612,-297.82867182,0.0005,120]
[356981524,1743519052661,-4980.72187101,0.0005,120]
[356981525,1743519052676,-6224.0699554,0.0005,120]
[356981526,1743519052691,-18783.83166582,0.0005,120]
[356981527,1743519052704,-3784.06068688,0.0005,120]
[356981528,1743519052717,-447.92587037,0.0005,120]
[356981529,1743519052808,-150.0,0.00048829,7]
[356981530,1743519052819,-150.0,0.00049595,7]
[356981531,1743519052829,-150.0,0.00049636,7]
[356981532,1743519052839,-150.0,0.0004969,7]
[356981533,1743519052849,-150.0,0.00049729,7]
[356981534,1743519052859,-150.0,0.00049838,7]
[356981535,1743519052868,-14468.13676347,0.0005,120]
[356981536,1743519052880,-7517.8456877,0.0005,120]
[356981537,1743519052892,-5656.22250845,0.0005,120]
[356981538,1743519053713,-173109.00806499,0.0005,120]
[356981539,1743519053724,-471.35338205,0.0005,120]
[356981540,1743519053736,-9842.02691674,0.0005,120]
[356981541,1743519053748,-1436.64845719,0.0005,120]
[356981542,1743519053759,-917.9307743,0.0005,120]
[356981543,1743519053775,-24848.55320023,0.0005,120]
[356981544,1743519053803,-1064.36055697,0.0003829,2]
[356981545,1743519053813,-443.48,0.00047781,30]
[356981546,1743519053823,-155.69788931,0.000499,120]
[356981547,1743519053832,-101099.39991522,0.0005,120]
[356981548,1743519053844,-1736.37503774,0.0005,120]
[356981549,1743519053887,-8382.51103596,0.0005,120]
[356981550,1743519053899,-588.28055749,0.0005,120]
[356981551,1743519053939,364.76236522,0.00014585,2]
[356981596,1743520231701,-164.28,0.00026849,2]
[356981598,1743520231711,-164.28,0.00032646,2]
[356981600,1743520231720,-146.93962009,0.00034083,2]
[356981604,1743520231757,-344.69529582,0.00034083,2]
[356981606,1743520231767,-963.15,0.00034157,5]
[356981608,1743520231776,-500.0,0.00034221,30]
[356981610,1743520231785,-300.0,0.00035178,2]
[356981612,1743520231794,-300.0,0.00036,2]
[356981614,1743520231803,-150.0,0.00037339,2]
[356981616,1743520231812,-164.28,0.00038443,2]
[356981618,1743520231821,-150.0,0.00038696,2]
[356981620,1743520231831,-1073.42155346,0.000395,2]
[356981622,1743520231839,-1173.0,0.000403,2]
[356981624,1743520231848,-4481.9615163,0.000403,30]
[356981627,1743520231863,-681.59136796,0.000403,30]
[356981629,1743520231875,-4522.01405745,0.000403,30]
[356981640,1743520231983,-560.10051257,0.000403,30]
[356981642,1743520231995,-87.30254572,0.000403,30]
[356981643,1743520232005,-1173.32527997,0.00043,2]
[356981644,1743520232014,-164.28,0.00044239,2]
[356981645,1743520232024,-676.27,0.00045446,2]
[356981646,1743520232034,-371.0,0.00046,30]
[356981647,1743520232044,-266.72989529,0.000466,30]
[356981649,1743520232054,-150.0,0.000466,30]
[356981651,1743520232064,-209.35572353,0.000466,30]
[356981652,1743520232073,-258.36181889,0.000466,30]
[356981653,1743520232084,-445.32041046,0.00046768,2]
[356981654,1743520232094,-150.0,0.00046835,7]
[356981655,1743520232104,-486.86,0.00046836,120]
[356981656,1743520232114,-1318.51980492,0.00046948,2]
[356981659,1743520232130,-2630.48019508,0.00046948,2]
[356981660,1743520232140,-151.0,0.00046948,2]
[356981661,1743520232150,-1000.0,0.00047009,2]
[356981662,1743520232160,-188.07,0.00047057,2]
[356981663,1743520232170,-116.56247492,0.00047098,2]
[356981664,1743520232183,-83.43752508,0.00047098,2]
[356981665,1743520232193,-157.83,0.0004748,2]
[356981666,1743520232203,-808.73247492,0.00047574,2]
[356981667,1743520232214,-5666.79961093,0.00047574,2]
[356981668,1743520232224,-1039.0,0.00047583,4]
[356981669,1743520232234,-21369.12343886,0.00047584,2]
[356981670,1743520232245,-2002.65164984,0.00047584,2]
[356981682,1743520232257,-1577.36276331,0.00047584,2]
[356981684,1743520232413,-5614.44618781,0.00047584,2]
[356981687,1743520232425,-419.99283975,0.00047584,2]
[356981688,1743520232438,-293.95909144,0.00047584,2]
[356981691,1743520232450,-31145.29402899,0.00047584,2]
[356981692,1743520232460,-150.0,0.00047663,2]
[356981695,1743520232470,-1022.97,0.0004768,2]
[356981696,1743520232480,-676.27,0.0004771,2]
[356981698,1743520232490,-200.0,0.00047761,2]
[356981700,1743520232500,-7584.85957236,0.00047932,2]
[356981702,1743520232510,-237.23681911,0.0004834,30]
[356981704,1743520232520,-150.0,0.0004834,30]
[356981706,1743520232530,-186.20667121,0.0004834,30]
[356981708,1743520232539,-213.20810178,0.0004834,30]
[356981710,1743520232549,-250.0,0.00048407,120]
[356981712,1743520232559,-462.26,0.00048414,2]
[356981714,1743520232568,-462.26,0.00048426,2]
[356981716,1743520232577,-462.26,0.00048439,2]
[356981718,1743520232586,-462.26,0.00048452,2]
[356981720,1743520232596,-462.26,0.00048465,2]
[356981722,1743520232607,-10157.85081718,0.00048477,7]
[356981724,1743520232616,-462.26,0.00048477,2]
[356981726,1743520232626,-462.26,0.0004849,2]
[356981728,1743520232635,-2751.0,0.00048491,120]
[356981730,1743520232644,-462.26,0.00048503,2]
[356981732,1743520232654,-166.66,0.00048503,2]
[356981735,1743520232664,-462.26,0.00048516,2]
[356981738,1743520232673,-462.26,0.00048528,2]
[356981741,1743520232683,-2000.0,0.00048529,120]
[356981744,1743520232694,-22913.84398937,0.00048529,2]
[356981747,1743520232706,-253.7535,0.00048529,2]
[356981751,1743520232717,-598.20233049,0.00048529,2]
[356981755,1743520232729,-134.20018014,0.00048529,2]
[356981758,1743520232739,-462.26,0.00048541,2]
[356981761,1743520232748,-403.79,0.00048548,2]
[356981764,1743520232757,-462.26,0.00048554,2]
[356981767,1743520232766,-218.70531127,0.00048555,2]
[356981859,1743520237587,-281.29468873,0.00048555,2]
[356981861,1743520237596,-462.26,0.00048567,2]
[356981863,1743520237606,-462.26,0.00048579,2]
[356981865,1743520237615,-462.26,0.00048592,2]
[356981867,1743520237625,-462.26,0.00048605,2]
[356981869,1743520237634,-462.26,0.00048618,2]
[356981871,1743520237643,-462.26,0.0004863,2]
[356981873,1743520237652,-462.26,0.00048643,2]
[356981875,1743520237661,-462.26,0.00048656,2]
[356981877,1743520237671,-90.62531129,0.00048801,2]
[356981879,1743520237683,-2001.65468871,0.00048801,2]
[356981881,1743520237696,-783.37,0.00049002,2]
[356981883,1743520237706,-165.0,0.00049042,2]
[356981885,1743520237716,-165.13,0.000491,120]
[356981886,1743520237725,-500.0,0.00049215,2]
[356981887,1743520237735,-223.9137,0.00049215,2]
[356981888,1743520237744,-2500.0,0.00049215,2]
[356981889,1743520237753,-1000.0,0.00049215,2]
[356981890,1743520237763,-1046.58,0.00049314,86]
[356981891,1743520237773,-237.076,0.00049314,86]
[356981892,1743520237784,-645.9069372,0.00049315,5]
[356981893,1743520237794,-500.0,0.00049315,120]
[356981894,1743520237803,-500.0,0.00049315,120]
[356981895,1743520237813,-1292.32,0.00049315,120]
[356981896,1743520237823,-589.35,0.00049315,120]
[356981897,1743520237832,-500.0,0.00049315,120]
[356981898,1743520237842,-516.21,0.00049315,120]
[356981899,1743520237851,-1160.65,0.00049315,2]
[356981900,1743520237861,-500.0,0.00049315,120]
[356981901,1743520237871,-500.0,0.00049315,120]
[356981902,1743520237884,-500.0,0.00049315,60]
[356981903,1743520237894,-500.0,0.00049315,120]
[356981904,1743520237904,-500.0,0.00049315,120]
[356981905,1743520237914,-500.0,0.00049315,120]
[356981906,1743520237924,-482.99015553,0.00049315,120]
[356981907,1743520237937,-500.0,0.00049315,120]
[356981908,1743520237952,-500.0,0.00049315,120]
[356981909,1743520237963,-463.69224073,0.00049315,120]
[356981910,1743520237974,-500.0,0.00049315,120]
[356981911,1743520237985,-254.78147535,0.00049315,120]
[356981912,1743520237995,-443.3590794,0.00049315,120]
[356981913,1743520238005,-676.39,0.00049315,120]
[356981914,1743520238015,-500.0,0.00049315,120]
[356981915,1743520238026,-500.0,0.00049315,120]
[356981916,1743520238035,-500.0,0.00049315,120]
[356981917,1743520238045,-500.0,0.00049315,120]
[356981919,1743520238055,-500.0,0.00049315,120]
[356981920,1743520238064,-500.0,0.00049315,120]
[356981921,1743520238074,-500.0,0.00049315,120]
[356981922,1743520238084,-498.19980096,0.00049315,120]
[356981923,1743520238094,-500.0,0.00049315,120]
[356981924,1743520238104,-233.10592213,0.00049315,120]
[356981925,1743520238214,-266.89407787,0.00049315,120]
[356981926,1743520238225,-500.0,0.00049315,120]
[356981927,1743520238236,-1005.1,0.00049315,120]
[356981928,1743520238246,-560.38,0.00049315,120]
[356981929,1743520238257,-22.62592613,0.00049315,120]
[356981930,1743520238270,-477.37407387,0.00049315,120]
[356981931,1743520238281,-2470.57,0.00049315,120]
[356981932,1743520238291,-168.85592607,0.00049315,120]
[356981933,1743520238303,-331.14407393,0.00049315,120]
[356981934,1743520238313,-500.0,0.00049315,120]
[356981935,1743520238323,-500.0,0.00049315,120]
[356981936,1743520238334,-500.0,0.00049315,120]
[356981937,1743520238343,-155.59592607,0.00049315,120]
[356981938,1743520238359,-344.40407393,0.00049315,120]
[356981939,1743520238369,-500.0,0.00049315,120]
[356981940,1743520238379,-500.0,0.00049315,120]
[356981941,1743520238389,-352.76885607,0.00049365,120]
[356981942,1743520238401,-147.23114393,0.00049365,120]
[356981943,1743520238411,-500.0,0.00049365,120]
[356981944,1743520238421,-487.74335463,0.00049365,120]
[356981945,1743520238433,-12.25664537,0.00049365,120]
[356981946,1743520238447,-500.0,0.00049365,2]
[356981947,1743520238456,-345.66063368,0.00049366,120]
[356981948,1743520238469,-154.33936632,0.00049366,120]
[356981949,1743520238478,-105.47055374,0.00049366,120]
[356981950,1743520238490,-394.52944626,0.00049366,120]
[356981951,1743520238500,-500.0,0.00049366,7]
[356981952,1743520238510,-500.0,0.00049366,120]
[356981953,1743520238520,-370.73793262,0.00049366,120]
[356981954,1743520238530,-500.0,0.00049366,120]
[356981955,1743520238540,-435.96501678,0.00049366,120]
[356981956,1743520238552,-64.03498322,0.00049366,120]
[356981957,1743520238562,-500.0,0.00049366,120]
[356981958,1743520238571,-200.0,0.00049366,120]
[356981959,1743520238581,-500.0,0.00049366,120]
[356981960,1743520238590,-500.0,0.00049366,120]
[356981961,1743520238599,-500.0,0.00049366,120]
[356981962,1743520238609,-500.0,0.00049366,120]
[356981963,1743520238619,-1135.93,0.00049366,120]
[356981964,1743520238629,-43390.11,0.00049366,7]
[356981965,1743520238638,-500.0,0.00049366,120]
[356981966,1743520238648,-500.0,0.00049366,120]
[356981967,1743520238659,-500.0,0.00049366,120]
[356981968,1743520238668,-500.0,0.00049366,120]
[356981969,1743520238679,-500.0,0.00049366,120]
[356981970,1743520238691,-500.0,0.00049366,120]
[356981971,1743520238700,-998.68,0.00049366,2]
[356981972,1743520238709,-500.0,0.00049366,120]
[356981973,1743520238719,-500.0,0.00049366,120]
[356981974,1743520238730,-500.0,0.00049366,120]
[356981975,1743520238739,-500.0,0.00049366,120]
[356981976,1743520238749,-500.0,0.00049366,120]
[356981977,1743520238759,-500.0,0.00049366,120]
[356981978,1743520238768,-500.0,0.00049366,120]
[356981979,1743520238779,-500.0,0.00049366,120]
[356981980,1743520238789,-500.0,0.00049366,120]
[356981981,1743520238799,-500.0,0.00049366,120]
[356981982,1743520238808,-500.0,0.00049366,120]
[356981983,1743520238818,-500.0,0.00049366,120]
[356981984,1743520238828,-500.0,0.00049366,120]
[356981985,1743520238838,-2665.92,0.00049366,120]
[356981986,1743520238847,-500.0,0.00049366,120]
[356981987,1743520238858,-500.0,0.00049366,120]
[356981988,1743520238867,-500.0,0.00049366,100]
[356981989,1743520238877,-500.0,0.00049366,120]
[356981990,1743520238888,-500.0,0.00049366,120]
[356981991,1743520238898,-500.0,0.00049366,120]
[356981992,1743520238908,-20295.3,0.00049367,2]
[356981993,1743520238918,-200.0,0.000494,18]
[356981994,1743520238928,-171.47866794,0.00049488,28]
[356981995,1743520238940,-1611.6619,0.00049489,2]
[356981996,1743520238949,-12001.1268,0.00049489,2]
[356981997,1743520238960,-150.0,0.000495,2]
[356981998,1743520238970,-500.0,0.000495,18]
[356981999,1743520238980,-502.14,0.00049588,120]
[356982000,1743520238990,-500.0,0.00049588,120]
[356982001,1743520239000,-500.0,0.00049588,120]
[356982002,1743520239010,-500.0,0.00049588,120]
[356982003,1743520239020,-261.20692029,0.00049588,120]
[356982004,1743520239030,-500.0,0.00049588,120]
[356982005,1743520239040,-500.0,0.00049588,120]
[356982006,1743520239050,-500.0,0.00049588,120]
[356982007,1743520239059,-500.0,0.00049588,120]
[356982008,1743520239069,-500.0,0.00049588,120]
[356982009,1743520239079,-500.0,0.00049588,120]
[356982010,1743520239089,-500.0,0.00049588,120]
[356982011,1743520239099,-500.0,0.00049588,120]
[356982012,1743520239109,-1839.48,0.00049588,120]
[356982013,1743520239118,-500.0,0.00049588,120]
[356982014,1743520239128,-500.0,0.00049588,120]
[356982015,1743520239138,-500.0,0.00049588,120]
[356982016,1743520239148,-500.0,0.00049588,120]
[356982017,1743520239158,-500.0,0.00049588,120]
[356982018,1743520239167,-500.0,0.00049588,120]
[356982019,1743520239177,-1000.0,0.00049588,120]
[356982020,1743520239190,-500.0,0.00049588,120]
[356982021,1743520239200,-500.0,0.00049588,120]
[356982022,1743520239209,-547.53,0.00049588,120]
[356982023,1743520239219,-500.0,0.00049589,120]
[356982024,1743520239229,-1292.32,0.00049589,120]
[356982025,1743520239240,-1160.65,0.00049589,2]
[356982026,1743520239249,-500.0,0.00049589,120]
[356982027,1743520239259,-500.0,0.00049589,120]
[356982028,1743520239269,-500.0,0.00049589,120]
[356982029,1743520239278,-544.45152489,0.00049589,120]
[356982030,1743520239288,-676.39,0.00049589,120]
[356982031,1743520239298,-500.0,0.00049589,120]
[356982032,1743520239307,-1005.1,0.00049589,120]
[356982033,1743520239317,-500.0,0.00049589,120]
[356982034,1743520239327,-2470.57,0.00049589,120]
[356982035,1743520239337,-800.0,0.000496,18]
[356982036,1743520239346,-154.69,0.000496,45]
[356982037,1743520239356,-154.69,0.000496,45]
[356982038,1743520239366,-154.69,0.000496,45]
[356982039,1743520239375,-154.69,0.000496,45]
[356982040,1743520239385,-154.69,0.000496,45]
[356982041,1743520239395,-500.0,0.0004964,120]
[356982042,1743520239406,-500.0,0.0004964,120]
[356982043,1743520239415,-500.0,0.0004964,120]
[356982044,1743520239426,-500.0,0.0004964,120]
[356982045,1743520239437,-500.0,0.0004964,120]
[356982046,1743520239448,-1135.93,0.0004964,120]
[356982047,1743520239457,-43390.11,0.0004964,7]
[356982048,1743520239467,-500.0,0.0004964,120]
[356982050,1743520239477,-500.0,0.0004964,120]
[356982051,1743520239487,-998.68,0.0004964,2]
[356982052,1743520239497,-500.0,0.0004964,120]
[356982053,1743520239506,-500.0,0.0004964,120]
[356982054,1743520239516,-500.0,0.0004964,120]
[356982055,1743520239525,-500.0,0.0004964,120]
[356982056,1743520239535,-500.0,0.0004964,120]
[356982057,1743520239544,-2665.92,0.0004964,120]
[356982058,1743520239554,-500.0,0.0004964,120]
[356982059,1743520239563,-500.0,0.0004964,100]
[356982060,1743520239572,-500.0,0.0004964,120]
[356982061,1743520239582,-500.0,0.0004964,120]
[356982062,1743520239592,-714.0,0.000497,30]
[356982063,1743520239601,-1000.0,0.000497,18]
[356982064,1743520239611,-16008.6,0.000497,40]
[356982065,1743520239620,-515.34894036,0.00049763,15]
[356982066,1743520239630,-196.053,0.00049763,2]
[356982067,1743520239639,-374.0538,0.00049763,2]
[356982068,1743520239649,-1181.5376,0.00049763,2]
[356982069,1743520239659,-1962.7747,0.00049763,2]
[356982070,1743520239668,-1000.0,0.00049763,2]
[356982071,1743520239678,-1620.6008,0.00049763,2]
[356982072,1743520239691,-515.34894035,0.00049778,15]
[356982075,1743520239700,-515.34894035,0.00049793,15]
[356982077,1743520239710,-500.0,0.000498,2]
[356982079,1743520239720,-1300.0,0.000498,18]
[356982080,1743520239841,-515.34894035,0.00049809,15]
[356982081,1743520239851,-515.34894035,0.00049824,15]
[356982082,1743520239860,-515.34894035,0.00049839,15]
[356982083,1743520239870,-515.34894035,0.00049854,15]
[356982084,1743520239883,-502.14,0.00049862,120]
[356982085,1743520239893,-500.0,0.00049862,120]
[356982086,1743520239902,-500.0,0.00049862,120]
[356982087,1743520239912,-500.0,0.00049862,120]
[356982088,1743520239922,-500.0,0.00049862,120]
[356982089,1743520239931,-500.0,0.00049862,120]
[356982090,1743520239955,-1839.48,0.00049862,120]
[356982091,1743520239966,-500.0,0.00049862,120]
[356982092,1743520239976,-547.53,0.00049862,120]
[356982093,1743520239986,-500.0,0.00049863,120]
[356982094,1743520239996,-1292.32,0.00049863,120]
[356982095,1743520240006,-1160.65,0.00049863,2]
[356982096,1743520240016,-500.0,0.00049863,120]
[356982097,1743520240026,-294.66059561,0.00049863,120]
[356982098,1743520240036,-500.0,0.00049863,120]
[356982099,1743520240046,-676.39,0.00049863,120]
[356982100,1743520240056,-1005.1,0.00049863,120]
[356982101,1743520240066,-500.0,0.00049863,120]
[356982102,1743520240076,-2470.57,0.00049863,120]
[356982103,1743520240086,-515.34894035,0.0004987,15]
[356982104,1743520240096,-153.7446331,0.00049873,10]
[356982105,1743520240106,-515.34894035,0.00049885,15]
[356982106,1743520240115,-500.0,0.00049898,2]
[356982107,1743520240125,-500.0,0.00049899,120]
[356982108,1743520240136,-500.0,0.00049899,2]
[356982109,1743520240148,-500.0,0.00049899,2]
[356982110,1743520240159,-500.0,0.00049899,120]
[356982111,1743520240168,-500.0,0.00049899,120]
[356982112,1743520240179,-500.0,0.00049899,120]
[356982113,1743520240190,-500.0,0.00049899,120]
[356982114,1743520240200,-500.0,0.00049899,120]
[356982115,1743520240211,-500.0,0.00049899,120]
[356982116,1743520240221,-500.0,0.00049899,120]
[356982117,1743520240231,-500.0,0.00049899,120]
[356982118,1743520240241,-595.09184395,0.00049899,120]
[356982119,1743520240251,-561.32151036,0.00049899,120]
[356982120,1743520240261,-500.0,0.00049899,120]
[356982121,1743520240270,-510.9352709,0.00049899,120]
[356982122,1743520240280,-500.0,0.00049899,120]
[356982123,1743520240291,-329.20761613,0.00049899,120]
[356982124,1743520240301,-500.0,0.00049899,120]
[356982125,1743520240310,-500.0,0.00049899,120]
[356982126,1743520240320,-500.0,0.00049899,120]
[356982127,1743520240329,-500.0,0.00049899,120]
[356982128,1743520240339,-500.0,0.00049899,120]
[356982129,1743520240349,-500.0,0.00049899,120]
[356982130,1743520240359,-500.0,0.00049899,120]
[356982131,1743520240368,-511.74675935,0.00049899,120]
[356982132,1743520240378,-500.0,0.00049899,120]
[356982133,1743520240388,-500.0,0.00049899,120]
[356982134,1743520240399,-500.0,0.00049899,120]
[356982135,1743520240409,-500.0,0.00049899,120]
[356982136,1743520240418,-500.0,0.00049899,120]
[356982137,1743520240428,-500.0,0.00049899,120]
[356982138,1743520240439,-500.0,0.00049899,120]
[356982139,1743520240449,-500.0,0.00049899,120]
[356982140,1743520240459,-500.0,0.00049899,120]
[356982141,1743520240468,-500.0,0.00049899,120]
[356982142,1743520240478,-261.06588494,0.00049899,120]
[356982143,1743520240488,-500.0,0.00049899,120]
[356982144,1743520240498,-500.0,0.00049899,120]
[356982145,1743520240508,-500.0,0.00049899,120]
[356982146,1743520240518,-500.0,0.00049899,120]
[356982147,1743520240528,-529.14805425,0.00049899,120]
[356982148,1743520240538,-500.0,0.00049899,120]
[356982149,1743520240547,-500.0,0.00049899,120]
[356982150,1743520240557,-500.0,0.00049899,120]
[356982151,1743520240567,-500.0,0.00049899,120]
[356982152,1743520240577,-500.0,0.00049899,120]
[356982153,1743520240587,-500.0,0.00049899,120]
[356982155,1743520240597,-500.0,0.00049899,120]
[356982157,1743520240607,-500.0,0.00049899,120]
[356982159,1743520240617,-500.0,0.00049899,120]
[356982160,1743520240627,-500.0,0.00049899,120]
[356982161,1743520240637,-500.0,0.00049899,120]
[356982162,1743520240647,-508.95273401,0.00049899,120]
[356982163,1743520240657,-503.63640816,0.00049899,120]
[356982164,1743520240667,-504.88009078,0.00049899,120]
[356982165,1743520240676,-500.0,0.00049899,120]
[356982166,1743520240689,-601.24131635,0.00049899,120]
[356982167,1743520240698,-500.0,0.00049899,120]
[356982168,1743520240708,-500.0,0.00049899,120]
[356982169,1743520240718,-500.0,0.00049899,120]
[356982170,1743520240728,-500.0,0.00049899,120]
[356982171,1743520240738,-500.0,0.00049899,120]
[356982172,1743520240747,-500.0,0.00049899,120]
[356982173,1743520240757,-500.0,0.00049899,120]
[356982174,1743520240767,-500.0,0.00049899,120]
[356982175,1743520240777,-500.0,0.00049899,120]
[356982176,1743520240787,-500.0,0.00049899,120]
[356982177,1743520240796,-500.0,0.00049899,120]
[356982178,1743520240806,-500.0,0.00049899,120]
[356982179,1743520240816,-505.17525884,0.00049899,120]
[356982180,1743520240825,-503.29767862,0.00049899,120]
[356982181,1743520240835,-500.0,0.00049899,120]
[356982182,1743520240845,-500.0,0.00049899,120]